bitfinex-derivatives/quotes_SOLF0:USTF0_20250211
["timestamp","ask_amount","ask_price","bid_price","bid_amount"]
[1739309222666,5.10133636,197.46,197.43,5.09836227]
[1739309222971,0.03673636,197.46,197.43,0.03316227]
[1739309223774,5.0648,197.45,197.43,0.03316227]
[1739309224469,5.065,197.44,197.43,0.03316227]
[1739309226069,5.0648,197.45,197.43,0.03316227]
[1739309227473,0.03673636,197.46,197.43,0.03316227]
[1739309227976,5.10143636,197.46,197.43,5.09826227]
[1739309228473,5.065,197.45,197.43,0.03316227]
[1739309229172,5.065,197.44,197.43,0.03316227]
[1739309230373,5.0663,197.39,197.38,93.19357695]
[1739309231475,5.0661,197.4,197.38,93.19357695]
[1739309231678,5.10482764,197.4,197.38,93.19357695]
[1739309232681,5.0663,197.39,197.38,93.19357695]
[1739309232881,0.03872764,197.4,197.37,0.03205322]
[1739309233682,5.0665,197.39,197.37,0.03205322]
[1739309235986,0.03872764,197.4,197.37,0.03205322]
[1739309237085,13.83028621,197.48,197.37,0.03205322]
[1739309237086,5.0637,197.5,197.39,13.83028621]
[1739309237278,13.83028621,197.51,197.4,1.5387]
[1739309237477,13.83028621,197.51,197.46,5.0643]
[1739309237879,13.83028621,197.51,197.41,1.5125]
[1739309238079,0.03408237,197.5,197.47,5.09633668]
[1739309238588,0.03408237,197.5,197.47,0.03213668]
[1739309238990,5.09778237,197.5,197.47,0.03213668]
[1739309239288,0.03408237,197.5,197.47,0.03213668]
[1739309240090,5.09758237,197.5,197.47,0.03213668]
[1739309240691,0.03408237,197.5,197.47,0.03213668]
[1739309240893,0.03408237,197.5,197.47,5.09633668]
[1739309241094,0.03408237,197.5,197.47,0.03213668]
[1739309241590,0.03408237,197.5,197.48,5.064]
[1739309242596,0.03408237,197.5,197.47,0.03213668]
[1739309242791,0.03408237,197.5,197.48,5.0638]
[1739309244090,0.03408237,197.5,197.49,5.0638]
[1739309244293,13.83028621,197.57,197.47,0.03213668]
[1739309244492,13.83028621,197.57,197.45,13.83028621]
[1739309244693,13.83028621,197.57,197.53,5.0625]
[1739309244991,18.89208621,197.57,197.53,5.0625]
[1739309245489,5.062,197.56,197.53,0.03690049]
[1739309245796,13.86297019,197.57,197.53,0.03690049]
[1739309245998,13.83028621,197.54,197.53,0.03690049]
[1739309246497,18.89278621,197.54,197.53,0.03690049]
[1739309246903,13.83028621,197.54,197.42,1.5533]
[1739309247195,5.0635,197.5,197.42,1.5533]
[1739309247597,13.83028621,197.51,197.46,5.0644]
[1739309247796,18.89358621,197.51,197.46,5.0644]
[1739309247996,0.03722571,197.5,197.47,0.03807702]
[1739309248395,5.064,197.48,197.47,0.03807702]
[1739309253596,18.89428621,197.48,197.47,0.03807702]
[1739309261106,5.0657,197.42,197.36,1.5026]
[1739309261607,5.0659,197.41,197.36,1.5026]
[1739309262005,13.83028621,197.44,197.36,1.5026]
[1739309262206,0.03457959,197.41,197.38,93.24509314]
[1739309262809,13.83028621,197.5,197.38,93.24509314]
[1739309263108,13.83028621,197.5,197.39,1.5467]
[1739309263310,5.0638,197.49,197.39,15.37698621]
[1739309264005,0.03499207,197.46,197.42,0.03215358]
[1739309264813,0.03499207,197.46,197.45,5.0648]
[1739309265510,13.83028621,197.53,197.48,5.064]
[1739309265915,5.0632,197.52,197.48,5.064]
[1739309266107,5.0632,197.52,197.47,5.0642]
[1739309266311,13.83028621,197.53,197.47,5.0642]
[1739309266508,5.0633,197.51,197.47,5.0642]
[1739309266717,5.0633,197.51,197.48,0.03470388]
[1739309268718,5.0635,197.5,197.48,0.03470388]
[1739309269220,0.03567938,197.52,197.48,0.03470388]
[1739309269419,5.09887938,197.52,197.48,0.03470388]
[1739309269920,5.0638,197.49,197.48,0.03470388]
[1739309276523,5.065,197.45,197.41,5.0657]
[1739309277626,5.09761482,197.45,197.41,5.10345841]
[1739309277828,5.0651,197.44,197.41,0.03775841]
[1739309278420,5.0656,197.42,197.41,0.03775841]
[1739309283629,13.93639984,197.42,197.41,0.03775841]
[1739309285929,8.87079984,197.42,197.41,0.03775841]
[1739309286122,5.0653,197.43,197.41,0.03775841]
[1739309287425,8.87079984,197.44,197.41,0.03775841]
[1739309287622,0.03261482,197.45,197.41,0.03775841]
[1739309290831,5.09741482,197.45,197.41,5.10345841]
[1739309291227,13.88765032,197.45,197.41,0.03775841]
[1739309291525,5.0651,197.44,197.41,0.03775841]
[1739309291931,13.88765032,197.45,197.41,5.10355841]
[1739309292231,0.03261482,197.45,197.41,5.10355841]
[1739309292734,0.03261482,197.45,197.42,5.0655]
[1739309293032,0.03261482,197.45,197.41,0.03775841]
[1739309293529,0.03261482,197.45,197.41,5.10335841]
[1739309293733,0.03261482,197.45,197.41,0.03775841]
[1739309293934,0.03261482,197.45,197.42,5.0655]
[1739309295733,0.03261482,197.45,197.41,0.03775841]
[1739309295929,0.03261482,197.45,197.44,5.065]
[1739309297238,13.8550355,197.51,197.46,5.0643]
[1739309297826,13.8550355,197.51,197.42,3.0255]
[1739309298031,13.8550355,197.48,197.42,3.0255]
[1739309298331,0.03804736,197.47,197.43,0.03744254]
[1739309298533,5.10234736,197.47,197.43,0.03744254]
[1739309298932,0.03804736,197.47,197.43,0.03744254]
[1739309299136,5.0647,197.46,197.43,0.03744254]
[1739309300240,0.03804736,197.47,197.43,0.03744254]
[1739309300740,5.065,197.44,197.43,0.03744254]
[1739309303943,0.03804736,197.47,197.43,0.03744254]
[1739309304147,5.0646,197.46,197.43,5.10254254]
[1739309304345,0.03804736,197.47,197.43,0.03744254]
[1739309304549,5.065,197.45,197.43,0.03744254]
[1739309304745,0.03804736,197.47,197.43,0.03744254]
[1739309305245,5.065,197.44,197.43,0.03744254]
[1739309311852,13.9327568,197.45,197.43,0.03744254]
[1739309313150,5.065,197.44,197.43,0.03744254]
[1739309331271,13.97030416,197.47,197.44,5.065]
[1739309335371,13.97030416,197.47,197.43,0.03744254]
[1739309335577,8.90580416,197.47,197.43,5.10274254]
[1739309335773,5.0646,197.46,197.43,5.10274254]
[1739309336473,5.065,197.44,197.43,0.03744254]
[1739309343281,8.90580416,197.47,197.43,0.03744254]
[1739309343476,0.03804736,197.47,197.43,8.90519934]
[1739309343880,0.03804736,197.47,197.44,4.5285]
[1739309344588,8.90580416,197.47,197.44,9.5933]
[1739309345085,0.03804736,197.47,197.46,5.0645]
[1739309345685,0.03804736,197.47,197.45,5.0647]
[1739309346684,8.90580416,197.47,197.43,0.03744254]
[1739309346889,8.8677568,197.45,197.43,0.03744254]
[1739309347191,5.065,197.44,197.43,0.03744254]
[1739309349991,8.8677568,197.45,197.34,3.0242]
[1739309350192,8.8677568,197.36,197.34,3.0242]
[1739309351296,8.8677568,197.36,197.33,0.03850926]
[1739309351593,8.8677568,197.34,197.33,0.03850926]
[1739309353792,8.8677568,197.36,197.34,5.0675]
[1739309353993,0.03785719,197.37,197.33,0.03850926]
[1739309354286,8.8677568,197.42,197.35,8.8677568]
[1739309354494,8.8677568,197.42,197.39,5.0663]
[1739309355392,8.90615601,197.42,197.39,0.03783152]
[1739309355698,13.97175601,197.42,197.39,0.03783152]
[1739309358096,13.9338568,197.4,197.39,0.03783152]
[1739309359404,8.8677568,197.4,197.31,5.0683]
[1739309359597,8.8677568,197.33,197.31,5.0683]
[1739309360397,8.8677568,197.33,197.3,94.74589603]
[1739309360599,0.03245079,197.34,197.32,5.0681]
[1739309362395,0.03245079,197.34,197.33,5.0679]
[1739309364503,0.03245079,197.34,197.31,5.0683]
[1739309366604,0.03245079,197.34,197.3,94.77782625]
[1739309367103,8.8677568,197.33,197.3,94.77782625]
[1739309367404,8.8677568,197.33,197.3,99.84632625]
[1739309367804,8.8677568,197.33,197.3,94.77782625]
[1739309368503,8.8677568,197.33,197.31,5.0684]
[1739309369506,8.8677568,197.33,197.3,94.77782625]
[1739309369804,13.9356568,197.33,197.3,99.84632625]
[1739309370404,5.0681,197.32,197.3,99.84632625]
[1739309370805,5.0681,197.32,197.3,94.77782625]
[1739309371404,5.0681,197.32,197.3,99.84642625]
[1739309371904,13.9356568,197.33,197.3,99.84642625]
[1739309372704,13.9356568,197.33,197.3,94.77782625]
[1739309372914,8.8677568,197.33,197.31,5.0683]
[1739309373206,8.8677568,197.33,197.3,94.77782625]
[1739309373812,13.9356568,197.33,197.3,99.84622625]
[1739309374112,8.8677568,197.33,197.3,93.26442625]
[1739309375515,13.9357568,197.33,197.3,98.33302625]
[1739309376517,8.8677568,197.33,197.3,98.33302625]
[1739309376717,5.0681,197.32,197.3,98.33302625]
[1739309377215,8.8677568,197.33,197.3,98.33302625]
[1739309377416,13.9357568,197.33,197.31,5.0684]
[1739309377916,0.03245079,197.34,197.3,93.26442625]
[1739309378117,0.03245079,197.34,197.32,5.0681]
[1739309379924,0.03245079,197.34,197.31,5.0683]
[1739309380327,8.8677568,197.33,197.31,5.0683]
[1739309381521,5.0684,197.31,197.3,0.03193022]
[1739309381730,8.8677568,197.31,197.19,4.5745]
[1739309381928,8.8677568,197.21,197.17,50.21659143]
[1739309382131,8.8677568,197.21,197.17,37.3705517]
[1739309382330,8.8677568,197.21,197.17,42.4425517]
[1739309382930,8.90122407,197.21,197.17,42.47712551]
[1739309383231,8.8677568,197.19,197.17,37.40512551]
[1739309383823,8.8677568,197.19,197.17,0.03457381]
[1739309385124,0.03346727,197.21,197.18,8.8677568]
[1739309385326,0.03346727,197.21,197.2,8.8677568]
[1739309385631,8.8677568,197.28,197.22,8.8677568]
[1739309386033,8.8677568,197.28,197.24,5.07]
[1739309386632,8.90061766,197.28,197.24,0.03878489]
[1739309387225,8.90061766,197.28,197.22,3.19573457]
[1739309387736,0.03286086,197.28,197.21,3.158]
[1739309388236,0.03286086,197.28,197.26,5.0696]
[1739309389531,0.03286086,197.28,197.24,5.0699]
[1739309389733,0.03286086,197.28,197.23,0.03860268]
[1739309390033,0.03286086,197.28,197.25,5.0697]
[1739309390633,0.03286086,197.28,197.23,0.03860268]
[1739309390835,0.03286086,197.28,197.26,5.0696]
[1739309391926,0.03286086,197.28,197.25,5.0697]
[1739309392231,0.03286086,197.28,197.23,0.03860268]
[1739309392432,0.03286086,197.28,197.24,5.07]
[1739309392736,0.03286086,197.28,197.23,0.03860268]
[1739309393233,0.03286086,197.28,197.25,5.0697]
[1739309393435,13.91131664,197.28,197.23,0.03860268]
[1739309394137,13.91131664,197.28,197.25,5.0699]
[1739309396337,18.98041664,197.28,197.25,5.0699]
[1739309396539,18.98041664,197.28,197.24,5.0701]
[1739309397139,18.98041664,197.28,197.23,0.03860268]
[1739309397340,13.91131664,197.28,197.25,5.0699]
[1739309397640,13.91131664,197.28,197.23,0.03860268]
[1739309397938,13.91131664,197.28,197.24,5.07]
[1739309398138,13.91131664,197.28,197.23,0.03860268]
[1739309398637,13.91131664,197.28,197.25,5.0697]
[1739309399030,18.98051664,197.28,197.25,5.0697]
[1739309400536,18.98051664,197.28,197.23,0.03860268]
[1739309400838,13.87845578,197.25,197.23,0.03860268]
[1739309401239,13.87845578,197.25,197.17,98.36283224]
[1739309401440,13.87845578,197.22,197.17,98.36283224]
[1739309401740,13.87845578,197.25,197.17,93.29103224]
[1739309402237,5.0709,197.22,197.17,5.0718]
[1739309402442,5.0709,197.22,197.19,0.03588384]
[1739309402836,18.94935578,197.22,197.19,0.03588384]
[1739309403038,5.0712,197.2,197.19,0.03588384]
[1739309403635,13.87845578,197.22,197.12,5.073]
[1739309403836,13.87845578,197.16,197.12,5.073]
[1739309404040,13.87845578,197.16,197.07,4.764]
[1739309404442,18.95145578,197.13,197.08,5.0742]
[1739309404640,13.87845578,197.13,197.07,4.764]
[1739309404835,13.87845578,197.1,197.09,0.0378044]
[1739309405545,13.87845578,197.1,197.03,93.35176538]
[1739309405743,13.87845578,197.07,197.03,93.35176538]
[1739309406139,13.87845578,197.07,197.04,5.0753]
[1739309406444,13.87845578,197.1,197.03,93.35176538]
[1739309406944,0.03284055,197.08,197.05,5.11362556]
[1739309407337,0.03284055,197.08,197.05,0.03882556]
[1739309407535,0.03284055,197.08,197.07,5.0745]
[1739309410246,13.87845578,197.16,197.11,5.0733]
[1739309411349,0.03538199,197.15,197.12,0.03864154]
[1739309411744,13.87845578,197.13,197.12,0.03864154]
[1739309414051,5.0736,197.11,197.05,5.075]
[1739309414249,13.87845578,197.09,197.03,93.35176538]
[1739309414651,13.87845578,197.06,197.03,93.35176538]
[1739309415156,13.91648751,197.06,197.03,93.38633419]
[1739309415552,13.91648751,197.06,196.95,1.5085]
[1739309415853,13.87845578,197.01,196.92,1.5583]
[1739309416652,0.03600181,196.98,196.95,0.03353246]
[1739309416847,13.87845578,197.04,196.92,1.5583]
[1739309417151,0.03239724,196.98,196.95,0.03469582]
[1739309418148,0.03239724,196.98,196.97,5.0771]
[1739309422049,9.724e-05,196.98,196.97,5.0771]
[1739309422355,1.4941,197.13,197.02,5.0757]
[1739309422356,5.0749,197.06,197.02,5.0757]
[1739309422552,13.87845578,197.1,196.97,13.87845578]
[1739309422751,18.95225578,197.1,197.0,13.87845578]
[1739309423057,13.87845578,197.13,197.03,13.87845578]
[1739309423452,0.03217738,197.07,197.04,1.4742]
[1739309424054,0.03217738,197.07,197.06,5.0748]
[1739309425055,5.0727,197.15,197.11,5.0735]
[1739309425356,13.87845578,197.16,197.04,1.4742]
[1739309425557,5.0719,197.18,197.12,5.0732]
[1739309426055,13.87845578,197.19,197.08,13.87845578]
[1739309426360,5.10687366,197.17,197.13,0.03759796]
[1739309426658,0.03487366,197.17,197.13,0.03759796]
[1739309426854,13.87845578,197.16,197.13,0.03759796]
[1739309427154,0.03487366,197.17,197.13,5.11039796]
[1739309427461,0.03487366,197.17,197.13,0.03759796]
[1739309428849,5.0724,197.16,197.13,0.03759796]
[1739309429053,0.03487366,197.17,197.13,0.03759796]
[1739309430759,5.10687366,197.17,197.13,0.03759796]
[1739309431463,5.0725,197.15,197.13,0.03759796]
[1739309431761,13.87845578,197.16,197.13,0.03759796]
[1739309431961,18.95095578,197.16,197.13,0.03759796]
[1739309432261,13.87845578,197.16,197.13,0.03759796]
[1739309432965,13.87845578,197.16,197.04,1.4742]
[1739309433163,13.87845578,197.12,197.04,1.4742]
[1739309433758,5.0736,197.11,197.06,5.0746]
[1739309434159,0.03681909,197.1,197.07,0.03789989]
[1739309434465,0.03681909,197.1,197.07,5.11239989]
[1739309435468,0.03681909,197.1,197.07,0.03789989]
[1739309436966,0.03681909,197.1,197.07,5.11219989]
[1739309437265,0.03681909,197.1,197.07,0.03789989]
[1739309437465,5.0743,197.08,197.07,0.03789989]
[1739309439268,13.87845578,197.09,196.97,5.0771]
[1739309439470,13.87845578,197.03,196.97,5.0771]
[1739309439766,5.076,197.02,196.96,1.4794]
[1739309440366,5.11366665,197.02,196.98,93.40917356]
[1739309440565,5.0761,197.01,196.98,93.40917356]
[1739309440762,0.03766665,197.02,196.98,93.40917356]
[1739309442370,0.03766665,197.02,197.01,5.0761]
[1739309450972,6.665e-05,197.02,197.01,5.0761]
[1739309452176,13.87845578,197.17,197.0,13.87845578]
[1739309452382,13.87845578,197.17,197.05,13.87845578]
[1739309452578,73.72538311,197.19,197.08,13.87845578]
[1739309452879,78.79688311,197.19,197.15,5.0724]
[1739309453481,78.83318143,197.19,197.15,5.110677]
[1739309454881,5.0719,197.18,197.15,0.038277]
[1739309455877,0.03629832,197.19,197.15,0.038277]
[1739309457486,0.03629832,197.19,197.17,5.072]
[1739309457788,0.03629832,197.19,197.15,0.038277]
[1739309458087,0.03629832,197.19,197.18,5.0717]
[1739309459995,13.87845578,197.29,197.17,13.87845578]
[1739309460383,13.87845578,197.29,197.24,5.0701]
[1739309460879,18.94735578,197.29,197.24,5.0701]
[1739309461080,0.03390099,197.28,197.25,0.03412516]
[1739309461792,0.03390099,197.28,197.25,5.10402516]
[1739309462186,0.03390099,197.28,197.25,0.03412516]
[1739309462389,0.03390099,197.28,197.27,5.0694]
[1739309462793,140.22182488,197.44,197.32,5.0681]
[1739309463092,4.5976,197.43,197.26,16.98655578]
[1739309463394,4.5976,197.43,197.33,5.0676]
[1739309463594,5.0663,197.39,197.26,16.98655578]
[1739309464197,0.03269031,197.34,197.31,0.03254125]
[1739309465788,0.03269031,197.34,197.33,5.0679]
[1739309466193,0.03269031,197.34,197.31,0.03254125]
[1739309466391,0.03269031,197.34,197.33,5.0679]
[1739309467294,0.03269031,197.34,197.31,0.03254125]
[1739309468290,0.03269031,197.34,197.33,5.0679]
[1739309468884,9.031e-05,197.34,197.33,5.0679]
[1739309470187,9.031e-05,197.34,197.32,5.0681]
[1739309472191,9.031e-05,197.34,197.31,0.03254125]
[1739309472386,9.031e-05,197.34,197.33,5.0679]
[1739309473192,9.031e-05,197.34,197.33,18.94635578]
[1739309473697,9.031e-05,197.34,197.33,27.23688268]
[1739309474297,22.16898268,197.53,197.33,22.16898268]
[1739309474493,22.16898268,197.53,197.37,22.16898268]
[1739309474694,22.16898268,197.53,197.34,22.16898268]
[1739309474894,22.16898268,197.53,197.37,22.16898268]
[1739309475294,5.0635,197.5,197.43,5.0652]
[1739309475600,0.0333153,197.47,197.43,5.10209506]
[1739309476192,0.0333153,197.47,197.43,0.03689506]
[1739309476590,5.0976153,197.47,197.43,0.03689506]
[1739309476995,22.20229798,197.47,197.43,0.03689506]
[1739309477198,5.0649,197.45,197.43,0.03689506]
[1739309477399,22.20229798,197.47,197.43,0.03689506]
[1739309477904,5.0648,197.45,197.43,0.03689506]
[1739309478201,22.20229798,197.47,197.43,0.03689506]
[1739309478401,5.065,197.44,197.37,5.0668]
[1739309478800,22.16898268,197.47,197.37,5.0668]
[1739309479003,5.0648,197.45,197.38,5.0666]
[1739309479398,22.16898268,197.47,197.32,1.5692]
[1739309479598,0.03272203,197.43,197.4,5.09832148]
[1739309480203,0.03272203,197.43,197.4,0.03232148]
[1739309482002,0.03272203,197.43,197.4,5.09832148]
[1739309482304,0.03272203,197.43,197.4,0.03232148]
[1739309483010,0.03272203,197.43,197.41,5.0656]
[1739309483310,0.03272203,197.43,197.4,0.03232148]
[1739309483705,0.03272203,197.43,197.42,5.0656]
[1739309484607,0.03272203,197.43,197.4,0.03232148]
[1739309485514,5.0658,197.41,197.4,0.03232148]
[1739309486107,0.03272203,197.43,197.4,0.03232148]
[1739309486705,0.03272203,197.43,197.41,5.0658]
[1739309487612,0.03272203,197.43,197.4,0.03232148]
[1739309487803,0.03272203,197.43,197.42,5.0656]
[1739309491111,25.23678268,197.53,197.4,0.03232148]
[1739309491305,5.0628,197.53,197.4,22.16898268]
[1739309491510,5.0628,197.53,197.41,3.1548]
[1739309491706,22.16898268,197.57,197.49,5.0635]
[1739309491910,22.16898268,197.57,197.41,3.1548]
[1739309492110,22.16898268,197.54,197.41,3.1548]
[1739309492416,0.0385466,197.51,197.47,0.0344732]
[1739309492814,5.0641,197.48,197.47,0.0344732]
[1739309493606,5.0638,197.49,197.47,0.0344732]
[1739309494314,0.0385466,197.51,197.47,0.0344732]
[1739309494914,0.0385466,197.51,197.48,5.064]
[1739309495219,0.0385466,197.51,197.47,0.0344732]
[1739309495920,0.0385466,197.51,197.5,5.0635]
[1739309496622,0.0385466,197.51,197.48,5.0638]
[1739309497122,0.0385466,197.51,197.47,5.0987732]
[1739309497612,0.0385466,197.51,197.47,0.0344732]
[1739309498022,5.1018466,197.51,197.47,0.0344732]
[1739309498620,0.0385466,197.51,197.47,0.0344732]
[1739309499219,5.1020466,197.51,197.47,0.0344732]
[1739309500021,0.0385466,197.51,197.47,0.0344732]
[1739309500613,22.20752928,197.51,197.47,0.0344732]
[1739309500825,5.064,197.48,197.47,0.0344732]
[1739309502821,5.0649,197.45,197.36,3.0314]
[1739309503425,3.0275,197.5,197.36,3.0314]
[1739309503615,5.0646,197.46,197.36,3.0314]
[1739309504016,0.03689673,197.43,197.41,5.0657]
[1739309504224,5.0648,197.45,197.41,5.0657]
[1739309504423,0.03309008,197.44,197.41,5.0657]
[1739309504726,0.03309008,197.44,197.42,5.0655]
[1739309504926,0.03309008,197.44,197.4,0.03710825]
[1739309505126,0.03309008,197.44,197.43,5.0653]
[1739309505428,9.008e-05,197.44,197.43,5.0653]
[1739309509219,9.008e-05,197.44,197.4,0.03710825]
[1739309509825,9.008e-05,197.44,197.43,5.0653]
[1739309511132,5.063,197.52,197.4,0.03710825]
[1739309511327,5.063,197.52,197.38,22.16898268]
[1739309511832,5.063,197.52,197.48,5.0638]
[1739309512427,0.0364507,197.52,197.5,5.0634]
[1739309512634,0.0364507,197.52,197.48,0.03793263]
[1739309513133,0.0364507,197.52,197.5,5.0634]
[1739309513729,0.0364507,197.52,197.48,0.03793263]
[1739309513930,0.0364507,197.52,197.51,5.0632]
[1739309515130,0.0364507,197.52,197.48,0.03793263]
[1739309515539,0.0364507,197.52,197.48,5.10193263]
[1739309515729,0.0364507,197.52,197.48,0.03793263]
[1739309516736,5.0996507,197.52,197.48,0.03793263]
[1739309517137,0.0364507,197.52,197.48,0.03793263]
[1739309517532,5.0633,197.51,197.48,0.03793263]
[1739309517729,0.0364507,197.52,197.48,0.03793263]
[1739309519333,5.0637,197.5,197.48,0.03793263]
[1739309520044,5.0638,197.49,197.48,0.03793263]
[1739309521537,18.31457847,197.51,197.4,1.5281]
[1739309521735,13.84847847,197.48,197.39,1.5715]
[1739309522238,5.0652,197.44,197.4,5.0659]
[1739309522438,13.84847847,197.48,197.39,1.5715]
[1739309522638,0.03262715,197.44,197.4,0.03560437]
[1739309523436,0.03262715,197.44,197.43,5.0653]
[1739309525537,0.03262715,197.44,197.41,5.0658]
[1739309525733,0.03262715,197.44,197.4,0.03560437]
[1739309526140,5.0658,197.41,197.4,0.03560437]
[1739309527541,13.84847847,197.42,197.4,0.03560437]
[1739309527741,5.0653,197.43,197.4,0.03560437]
[1739309528041,0.03262715,197.44,197.4,0.03560437]
[1739309529437,0.03262715,197.44,197.42,5.0654]
[1739309529641,0.03262715,197.44,197.4,0.03560437]
[1739309530139,0.03262715,197.44,197.41,5.0656]
[1739309531438,0.03262715,197.44,197.41,5.0658]
[1739309531942,0.03262715,197.44,197.4,0.03560437]
[1739309532141,0.03262715,197.44,197.43,5.0653]
[1739309533643,0.03262715,197.44,197.4,0.03560437]
[1739309533842,0.03262715,197.44,197.41,5.0656]
[1739309534247,0.03262715,197.44,197.42,5.0655]
[1739309534445,0.03262715,197.44,197.4,0.03560437]
[1739309534842,0.03262715,197.44,197.42,5.0654]
[1739309536538,0.03262715,197.44,197.4,5.10140437]
[1739309536743,0.03262715,197.44,197.4,0.03560437]
[1739309538252,0.03262715,197.44,197.43,5.0653]
[1739309539843,0.03262715,197.44,197.41,4.6549]
[1739309540952,0.03262715,197.44,197.43,5.0653]
[1739309541543,5.0636,197.5,197.47,5.0642]
[1739309541745,5.0632,197.52,197.41,4.6549]
[1739309541947,4.595,197.58,197.43,22.17791958]
[1739309542142,22.17791958,197.61,197.43,22.17791958]
[1739309542342,140.22182488,197.63,197.47,22.17791958]
[1739309542539,140.22182488,197.63,197.51,22.17791958]
[1739309542744,6.636e-05,197.57,197.56,22.17791958]
[1739309543145,140.22182488,197.63,197.56,22.17791958]
[1739309543345,140.22182488,197.65,197.56,22.17791958]
[1739309543740,140.22182488,197.65,197.59,22.17791958]
[1739309543947,140.22182488,197.65,197.64,5.0599]
[1739309544141,132.25352488,197.65,197.64,5.0599]
[1739309544443,100.00022488,197.65,197.64,5.0599]
[1739309545242,79.24394997,197.65,197.64,5.0599]
[1739309545441,175.36955272,197.66,197.64,5.0599]
[1739309545643,109.00159009,197.66,197.64,5.0599]
[1739309545846,109.00159009,197.66,197.63,22.21035915]
[1739309546052,109.00159009,197.66,197.63,0.03243957]
[1739309546449,0.03315333,197.66,197.63,0.03243957]
[1739309547856,0.03315333,197.66,197.64,5.0599]
[1739309548044,0.03315333,197.66,197.63,0.03243957]
[1739309550555,5.0597,197.65,197.63,0.03243957]
[1739309551554,5.0599,197.64,197.63,0.03243957]
[1739309551756,0.03315333,197.66,197.63,0.03243957]
[1739309552145,0.03315333,197.66,197.57,115.26751281]
[1739309552146,5.0599,197.64,197.58,5.0614]
[1739309552356,5.0599,197.64,197.57,93.08959323]
[1739309552556,0.03315333,197.66,197.57,93.08959323]
[1739309552757,5.0602,197.63,197.58,5.0614]
[1739309553457,5.0602,197.63,197.59,0.03630336]
[1739309553655,5.0604,197.62,197.59,0.03630336]
[1739309553855,1.6151,197.65,197.59,0.03630336]
[1739309554153,3.1229,197.65,197.59,0.03630336]
[1739309555456,5.0609,197.6,197.59,0.03630336]
[1739309556150,0.03336042,197.61,197.57,93.08959323]
[1739309556355,5.061,197.6,197.57,93.08959323]
[1739309556955,0.03336042,197.61,197.57,93.08959323]
[1739309557257,3.1229,197.65,197.57,93.08959323]
[1739309558360,0.03573276,197.63,197.59,0.03248324]
[1739309558761,0.03573276,197.63,197.57,93.08959323]
[1739309558762,5.0614,197.58,197.57,93.08959323]
[1739309559156,0.03573276,197.63,197.57,93.08959323]
[1739309559356,5.0612,197.6,197.57,93.08959323]
[1739309559952,5.0614,197.59,197.57,93.1248127]
[1739309560155,10.1088,197.86,197.58,22.17791958]
[1739309560362,10.1088,197.86,197.57,93.1248127]
[1739309560363,3.1868,197.77,197.62,22.17791958]
[1739309560761,3.1868,197.77,197.66,5.0593]
[1739309560960,3.1868,197.77,197.62,22.17791958]
[1739309561257,0.03323617,197.73,197.7,0.03383926]
[1739309562565,0.03323617,197.73,197.7,5.09223926]
[1739309563254,0.03323617,197.73,197.7,0.03383926]
[1739309563454,0.03323617,197.73,197.72,5.0579]
[1739309564658,3.617e-05,197.73,197.72,5.0579]
[1739309565162,22.17791958,197.86,197.7,0.03383926]
[1739309565362,22.17791958,197.86,197.68,22.17791958]
[1739309565559,5.0559,197.8,197.68,22.17791958]
[1739309565769,22.17791958,197.83,197.66,6.82662439]
[1739309566164,5.0555,197.82,197.71,5.0581]
[1739309566363,5.0555,197.82,197.66,6.82662439]
[1739309566364,0.03495178,197.76,197.73,0.0383884]
[1739309566560,22.17791958,197.83,197.73,0.0383884]
[1739309566863,0.03268248,197.76,197.73,0.0383884]
[1739309567063,5.0562,197.79,197.74,5.0574]
[1739309567365,0.03852702,197.76,197.74,5.0574]
[1739309567866,0.03852702,197.76,197.73,0.0383884]
[1739309568166,0.03852702,197.76,197.73,5.0959884]
[1739309568769,0.03852702,197.76,197.73,0.0383884]
[1739309569266,0.03852702,197.76,197.74,5.0573]
[1739309569765,5.0571,197.75,197.73,0.0383884]
[1739309569960,4.99729185,197.75,197.73,0.0383884]
[1739309571172,0.03852702,197.76,197.73,0.0383884]
[1739309571369,1.5729,197.75,197.73,0.0383884]
[1739309573879,5.0564,197.78,197.74,5.0573]
[1739309574383,5.0565,197.78,197.74,17.1658451]
[1739309574982,0.03289402,197.78,197.74,17.19782585]
[1739309575179,0.03289402,197.78,197.76,5.0568]
[1739309575879,0.03289402,197.78,197.76,11.88342439]
[1739309576675,5.0566,197.77,197.76,6.82662439]
[1739309577076,0.03289402,197.78,197.76,6.82662439]
[1739309578079,0.03289402,197.78,197.76,58.27829508]
[1739309578381,5.0561,197.79,197.76,63.33499508]
[1739309578581,5.0561,197.79,197.76,58.27829508]
[1739309579375,5.08993692,197.79,197.77,140.50123857]